{"text_format":"1","workbook":"xlsx","n_sheets":2,"sheets":["Appraisal","Dictionary"],"not_rendered":{"charts":0,"images":2,"macros":0,"external_links":0,"defined_names":1,"comments":0,"pivot_tables":0},"unopened":[],"bounds":{"document_bytes":16777216,"sheet_cells":100000,"rows_first":2000,"rows_last":500,"rows_between":2000,"halvings":0,"cell_chars":16384,"cell_head_chars":4096},"cells_cut":0,"cells_raw":0,"read":"whole","date_system":"1900"}

{"sheet":"Appraisal","index":0,"n_rows":214,"n_cols":42,"rows_kept":214,"cut":false,"hidden":false,"merged":[[87,1,87,3],[87,4,87,5],[87,6,87,23],[99,1,99,3],[99,4,99,5],[99,6,99,23],[101,1,101,3],[101,4,101,5],[101,6,101,23],[71,1,71,3],[71,4,71,5],[71,6,71,23],[73,1,73,3],[73,4,73,5],[73,6,73,23],[202,1,202,3],[202,4,202,5],[202,6,202,23],[136,6,136,23],[147,1,147,23],[153,1,153,3],[123,1,130,23],[132,1,132,3],[138,1,138,23],[131,1,131,23],[153,4,153,5],[153,6,153,23],[155,1,162,23],[112,1,114,23],[150,1,150,3],[150,4,150,5],[150,6,150,23],[151,1,151,3],[203,1,203,3],[203,4,203,5],[203,6,203,23],[204,1,204,23],[205,1,211,23],[1,1,1,23],[64,8,64,10],[64,11,64,12],[64,14,64,16],[64,17,64,18],[199,6,199,23],[199,1,199,3],[199,4,199,5],[200,1,200,3],[200,4,200,5],[200,6,200,23],[3,1,4,23],[2,1,2,23],[61,7,61,23],[63,3,63,5],[64,3,64,5],[64,1,64,2],[63,1,63,2],[62,1,62,23],[63,7,63,9],[63,10,63,13],[63,14,63,23],[121,1,121,3],[121,4,121,5],[201,1,201,3],[201,4,201,5],[201,6,201,23],[154,1,154,23],[122,1,122,23],[132,4,132,5],[132,6,132,23],[133,1,133,3],[133,4,133,5],[172,1,172,3],[172,4,172,5],[149,6,149,23],[133,6,133,23],[134,1,134,3],[134,4,134,5],[134,6,134,23],[135,6,135,23],[136,1,136,3],[136,4,136,5],[61,1,61,6],[65,1,65,23],[116,1,116,3],[117,1,117,3],[118,1,118,3],[119,1,119,3],[120,1,120,3],[116,4,116,5],[117,4,117,5],[118,4,118,5],[119,4,119,5],[120,4,120,5],[116,6,116,23],[117,6,117,23],[118,6,118,23],[119,6,119,23],[120,6,120,23],[111,1,111,23],[66,1,68,23],[69,1,69,23],[70,1,70,3],[70,4,70,5],[70,6,70,23],[72,1,72,3],[151,4,151,5],[151,6,151,23],[152,1,152,3],[152,4,152,5],[152,6,152,23],[137,1,137,3],[137,4,137,5],[137,6,137,23],[139,1,146,23],[115,1,115,23],[148,1,148,3],[148,4,148,5],[148,6,148,23],[149,1,149,3],[149,4,149,5],[121,6,121,23],[135,1,135,3],[135,4,135,5],[187,4,187,5],[187,6,187,23],[169,1,169,3],[169,4,169,5],[169,6,169,23],[170,1,170,3],[170,4,170,5],[170,6,170,23],[171,1,171,3],[171,4,171,5],[171,6,171,23],[175,1,181,23],[182,1,182,23],[183,1,183,3],[183,4,183,5],[183,6,183,23],[184,1,184,3],[184,4,184,5],[184,6,184,23],[172,6,172,23],[173,6,173,23],[174,1,174,23],[173,1,173,3],[173,4,173,5],[163,1,163,23],[164,1,166,23],[167,1,167,23],[168,1,168,3],[168,4,168,5],[168,6,168,23],[212,1,212,23],[213,1,215,23],[188,1,188,3],[188,4,188,5],[188,6,188,23],[189,1,189,23],[190,1,196,23],[197,1,197,23],[198,1,198,3],[198,4,198,5],[198,6,198,23],[185,1,185,3],[185,4,185,5],[185,6,185,23],[186,1,186,3],[186,4,186,5],[186,6,186,23],[187,1,187,3],[6,1,6,6],[6,7,6,23],[7,1,7,23],[8,1,8,2],[8,3,8,5],[8,7,8,9],[8,10,8,13],[8,14,8,23],[9,1,9,2],[9,3,9,5],[9,8,9,10],[9,11,9,12],[9,14,9,16],[9,17,9,18],[10,1,10,23],[11,1,11,23],[12,1,12,16],[12,17,12,23],[13,1,13,23],[14,1,14,23],[15,1,15,23],[16,1,16,16],[16,17,16,23],[17,1,17,23],[18,1,18,23],[19,1,19,23],[20,1,20,16],[20,17,20,23],[21,1,21,23],[22,1,22,23],[23,1,23,16],[23,17,23,23],[24,1,24,23],[25,1,25,23],[26,1,26,23],[27,1,27,23],[28,1,28,16],[28,17,28,23],[29,1,29,23],[30,1,30,23],[31,1,31,23],[32,1,32,16],[32,17,32,23],[33,1,33,23],[34,1,34,23],[35,1,35,23],[36,1,36,16],[36,17,36,23],[37,1,37,23],[38,1,38,23],[39,1,39,16],[39,17,39,23],[40,1,40,23],[41,1,41,23],[42,1,42,23],[43,1,43,23],[44,1,44,16],[44,17,44,23],[45,1,45,23],[46,1,46,23],[47,1,47,23],[48,1,48,16],[48,17,48,23],[49,1,49,23],[50,1,50,23],[51,1,51,23],[52,1,52,16],[52,17,52,23],[53,1,53,23],[54,1,54,23],[55,1,55,16],[55,17,55,23],[56,1,56,23],[57,1,57,23],[58,1,58,16],[58,17,59,23],[59,7,59,8],[59,9,59,13],[59,14,59,16],[72,4,72,5],[72,6,72,23],[74,1,74,23],[75,1,82,23],[83,1,83,23],[84,1,84,3],[84,4,84,5],[84,6,84,23],[86,1,86,3],[86,4,86,5],[86,6,86,23],[85,1,85,3],[85,4,85,5],[85,6,85,23],[102,1,102,23],[103,1,110,23],[88,1,88,23],[89,1,96,23],[97,1,97,23],[98,1,98,3],[98,4,98,5],[98,6,98,23],[100,1,100,3],[100,4,100,5],[100,6,100,23]]}
[]
[]
[null,"FACULTY ANNUAL APPRAISAL 2022-2023\nCONTRIBUTIONS TO UTSA/ACOB/DEPARTMENT MISSION AND GOALS"]
[null,"\nThe attached appraisal system is directly linked to the mission and goals of the College of Business and UTSA. Specific goals are for:\n1. UTSA and ACOB students to be successful (see UTSA Graduation Rate Improvement Plan, THECB expectations for numbers of UG, GRAD, PHD degrees awarded),\n2. The ACOB to be efficient,\n3. The ACOB to maintain accreditation through high quality faculty and programs,\n4. The University to be recognized as Carnegie R1, and maintain Carnegie R1 status.\n\nExamples of ways in which faculty teaching, research and service activities can contribute to these goals are listed below.\n\n1.    Student Success – contributes to student success (retention, graduation, placement) by\n     Providing class access by offering more seats (e.g., larger classes);\n     Providing greater scheduling options for students (e.g., day/night classes, 3-5 day schedule, Main/DT campuses, number of preps, larger classes, etc.);\n     Supporting weekend programs/offerings (e.g., EMBA program);\n     Enhancing UG research skills for graduate school (e.g., chairing Honors Thesis);\n     Enhancing leadership skills for jobs in business (e.g., faculty sponsor of student organization);\n     Enhancing skills for academia (co-authoring papers with students);\n     Classroom instruction (e.g., teaching portfolio);\n     Mentoring (e.g., advisor of record).\n\n2.    Efficiency – contributes to lower instructional costs by\n     Reducing demand for additional (limited) classroom space (e.g., larger classes, hybrid or online class, early morning class, etc.);\n     Reducing the number of part-time, adjunct faculty (e.g., larger classes,  teaching at different levels,  day/night classes, 3-5 day schedule, Main/DT campuses, number of preps, etc.);\n\n3.    AACSB – contributes to ACOB accreditation efforts by\n     Increasing %SCH taught by Scholarly Academic Faculty (larger classes, teaching at different levels);\n     Increasing %SCH taught by Practice Academic Faculty (larger classes, teaching at different levels);\n     Assisting in Assurance of Learning Activities (e.g., chairing/participating in department AOL efforts);\n     Establishing Research Impact (e.g., journal quality);\n     Establishing faculty currency and/or continuing professional development (e.g. publications, other ICs);\n     Participation in Strategic Planning efforts (e.g., chair/member of key committees).\n\n4.    R1 – contributes to ACOB/UTSA “R1” quest by\n     Enhancing academic reputation through high quality intellectual contributions (e.g., journal quality, grants, best papers, etc.);\n     Supporting other departmental faculty research efforts through teaching (e.g., teach large classes, number of preps, etc.);\n     Supporting masters/doctoral education (graduate instruction);\n     Participating in programs for Honors students (e.g., teaching Honors classes, chairing thesis);\n     Serving/chairing committees (e.g., dissertation committees);\n     Showcasing ACOB quality to external community (e.g., officer in professional organization, executive education, etc.)."]
[]
[]
[null,null,null,null,null,null,null,"UNTENURED TENURE-TRACK FACULTY ANNUAL\nAPPRAISAL SUMMATION 9/1/22 – 8/31/23"]
[]
[null,"Name:",null,null,null,null,"abc123:",null,null,null,"Title:"]
[null,"Department:",null,null,null,null,"Weights:","T","0%",null,null,null,null,"R","0%",null,null,"S",null,"0%",null,"Admin","0%"]
[null,"TEACHING"]
[null,"I. Faculty Evaluation of Her/His Teaching Activities (0-100 points)"]
[null,"ACOB Teaching Rubric Total Points 9/1/22 – 8/31/23",null,null,null,null,null,null,null,null,null,null,null,null,null,null,null,{"$f":"E74+E122+E174","v":0}]
[null,"Faculty Comments/Statements (From ACOB Teaching Rubric 9/1/22 – 8/31/23):"]
[]
[null,"II. Departmental Faculty Committee Evaluation of Teaching Activities (0-100 points)"]
[null,"Committee Recommended Points"]
[null,"Explain (Required only if Committee Recommendation differs from Rubric, or the faculty member is untenured.):"]
[]
[null,"III. Department Chair Evaluation of Teaching Activities (0-100 points)"]
[null,"Chair Recommended Points"]
[null,"Explain (Required only if Chair Recommendation differs from Committee, or the faculty member is untenured.):"]
[]
[null,"IV. Dean Review of Teaching Activities (0-100 points)"]
[null,"Explain (Required only if Dean differs from Department Chair):"]
[]
[null,"RESEARCH"]
[null,"I. Faculty Evaluation of Her/His Research Activities (0-100 points)"]
[null,"ACOB Research Rubric Total Points 9/1/22 – 8/31/23",null,null,null,null,null,null,null,null,null,null,null,null,null,null,null,{"$f":"E88+E138+E189","v":0}]
[null,"Faculty Comments/Statements (From ACOB Research Rubric 9/1/22 – 8/31/23):"]
[]
[null,"II. Departmental Faculty Committee Evaluation of Research Activities (0-100 points)"]
[null,"Committee Recommended Points"]
[null,"Explain (Required only if Committee Recommendation differs from Rubric, or the faculty member is untenured.):"]
[]
[null,"III. Department Chair Evaluation of Research Activities (0-100 points)"]
[null,"Chair Recommended Points"]
[null,"Explain (Required only if Chair Recommendation differs from Committee, or the faculty member is untenured.):"]
[]
[null,"IV. Dean Review of Research Activities (0-100 points)"]
[null,"Explain (Required only if Dean differs from Department Chair):"]
[]
[null,"SERVICE"]
[null,"I. Faculty Evaluation of Her/His Service Activities (0-100 points)"]
[null,"ACOB Service Rubric Total Points 9/1/22 – 8/31/23",null,null,null,null,null,null,null,null,null,null,null,null,null,null,null,{"$f":"E102+E154+E204","v":0}]
[null,"Faculty Comments/Statements (From ACOB Service Rubric 9/1/22 – 8/31/23):"]
[]
[null,"II. Departmental Faculty Committee Evaluation of Service Activities (0-100 points)"]
[null,"Committee Recommended Points"]
[null,"Explain (Required only if Committee Recommendation differs from Rubric, or the faculty member is untenured.):"]
[]
[null,"III. Department Chair Evaluation of Service Activities (0-100 points)"]
[null,"Chair Recommended Points"]
[null,"Explain (Required only if Chair Recommendation differs from Committee, or the faculty member is untenured.):"]
[]
[null,"IV. Dean Review of Service Activities (0-100 points)"]
[null,"Explain (Required only if Dean differs from Department Chair):"]
[]
[null,"OVERALL FACULTY APPRAISAL POINTS WEIGHTED",null,null,null,null,null,null,null,null,null,null,null,null,null,null,null,{"$f":"AO59","v":0}]
[null,null,"T",{"$f":"I10","v":"0%"},"R",{"$f":"O10","v":"0%"},"S",{"$f":"T10","v":"0%"},null,"Admin",null,null,null,null,{"$f":"W10","v":"0%"}]
[]
[null,null,null,null,null,null,null,"UNTENURED TENURE-TRACK FACULTY\nANNUAL APPRAISAL 9/1/22 – 8/31/23"]
[]
[null,"Name:",null,{"$f":"D9","v":0},null,null,"abc123:",{"$f":"H9","v":0},null,null,"Title:",null,null,null,{"$f":"O9","v":0}]
[null,"Department:",null,{"$f":"D10","v":0},null,null,"Weights:","T",{"$f":"I10","v":"0%"},null,null,null,null,"R",{"$f":"O10","v":"0%"},null,null,"S",null,{"$f":"T10","v":"0%"},null,"Admin",{"$f":"W10","v":"0%"}]
[null,"FIRST CONTRACT YEAR"]
[null,"Unless there is compelling evidence to the contrary, first year faculty (faculty members who have been at UTSA one academic year) will automatically receive a rating of “70” in the “Meets Expectations” category and no further action is required. Ratings above or below “70” must be explained by the chair and approved by the chair and Dean. The faculty member will enter her/his annual activity report in Digital Measures but will not fill out the ACOB Faculty Annual Appraisal rubric."]
[]
[]
[null,"TEACHING"]
[null,"Rating",null,null,"Points",null,"Descriptor"]
[null,"Meets",null,null,70,null,"At least average evaluations",null,null,null,null,null,null,null,null,null,null,null,null,null,null,null,null,null,null,null,null,null,null,null,null,null,null,null,null,null,null,null,null,null,false]
[null," above or below “70”"]
[null,"Total Points",null,null,{"$f":"IF(AO72,70,E73)","v":0}]
[null,"Explanation for rating:"]
[]
[]
[]
[]
[]
[]
[]
[]
[null,"RESEARCH"]
[null,"Rating",null,null,"Points",null,"Descriptor"]
[null,"Meets",null,null,70,null,"At least average evaluations",null,null,null,null,null,null,null,null,null,null,null,null,null,null,null,null,null,null,null,null,null,null,null,null,null,null,null,null,null,null,null,null,null,false]
[null," above or below “70”"]
[null,"Total Points",null,null,{"$f":"IF(AO86,70,E87)","v":0}]
[null,"Explanation for rating:"]
[]
[]
[]
[]
[]
[]
[]
[]
[null,"SERVICE"]
[null,"Rating",null,null,"Points",null,"Descriptor"]
[null,"Meets",null,null,70,null,"At least average evaluations",null,null,null,null,null,null,null,null,null,null,null,null,null,null,null,null,null,null,null,null,null,null,null,null,null,null,null,null,null,null,null,null,null,false]
[null," above or below “70”"]
[null,"Total Points",null,null,{"$f":"IF(AO100,70,E101)","v":0}]
[null,"Explanation for rating:"]
[]
[]
[]
[]
[]
[]
[]
[]
[null,"SECOND CONTRACT YEAR"]
[null,"During the second contract year the faculty member will enter her/his annual activity report in Digital Measures but will not fill out the ACOB Faculty Annual Appraisal rubric. The faculty review committee and the department chair will perform appraisals according to the following."]
[]
[]
[null,"TEACHING"]
[null,"Rating",null,null,"Points",null,"Descriptor"]
[null,"Exceeds",null,null,85,null,"Exceptional evaluations",null,null,null,null,null,null,null,null,null,null,null,null,null,null,null,null,null,null,null,null,null,null,null,null,null,null,null,null,null,null,null,null,null,false,{"$f":"IF(AO118,85,0)","v":0}]
[null,"Meets",null,null,70,null,"At least average evaluations",null,null,null,null,null,null,null,null,null,null,null,null,null,null,null,null,null,null,null,null,null,null,null,null,null,null,null,null,null,null,null,null,null,false,{"$f":"IF(AO119,70,0)","v":0}]
[null,"Fails to Meet",null,null,50,null,"Below average evaluations",null,null,null,null,null,null,null,null,null,null,null,null,null,null,null,null,null,null,null,null,null,null,null,null,null,null,null,null,null,null,null,null,null,false,{"$f":"IF(AO120,50,0)","v":0}]
[null,"Unsatisfactory",null,null,20,null,"Poor evaluations",null,null,null,null,null,null,null,null,null,null,null,null,null,null,null,null,null,null,null,null,null,null,null,null,null,null,null,null,null,null,null,null,null,false,{"$f":"IF(AO121,20,0)","v":0}]
[null,"Total Points",null,null,{"$f":"AP122","v":0},null,null,null,null,null,null,null,null,null,null,null,null,null,null,null,null,null,null,null,null,null,null,null,null,null,null,null,null,null,null,null,null,null,null,null,null,{"$f":"SUM(AP118:AP121)","v":0}]
[null,"Explanation for rating:"]
[]
[]
[]
[]
[]
[]
[]
[]
[null,"RESEARCH"]
[null,"Rating",null,null,"Points",null,"Descriptor"]
[null,"Exceeds",null,null,85,null,"Paper(s) accepted in quality journal(s)",null,null,null,null,null,null,null,null,null,null,null,null,null,null,null,null,null,null,null,null,null,null,null,null,null,null,null,null,null,null,null,null,null,false,{"$f":"IF(AO134,85,0)","v":0}]
[null,"Meets",null,null,70,null,"Presentation(s) or submission(s) or acceptance",null,null,null,null,null,null,null,null,null,null,null,null,null,null,null,null,null,null,null,null,null,null,null,null,null,null,null,null,null,null,null,null,null,false,{"$f":"IF(AO135,70,0)","v":0}]
[null,"Fails to Meet",null,null,50,null,"Works in progress only",null,null,null,null,null,null,null,null,null,null,null,null,null,null,null,null,null,null,null,null,null,null,null,null,null,null,null,null,null,null,null,null,null,false,{"$f":"IF(AO136,50,0)","v":0}]
[null,"Unsatisfactory",null,null,20,null,"No works in progress",null,null,null,null,null,null,null,null,null,null,null,null,null,null,null,null,null,null,null,null,null,null,null,null,null,null,null,null,null,null,null,null,null,false,{"$f":"IF(AO137,20,0)","v":0}]
[null,"Total Points",null,null,{"$f":"AP138","v":0},null,null,null,null,null,null,null,null,null,null,null,null,null,null,null,null,null,null,null,null,null,null,null,null,null,null,null,null,null,null,null,null,null,null,null,null,{"$f":"SUM(AP134:AP137)","v":0}]
[null,"Explanation for rating:"]
[]
[]
[]
[]
[]
[]
[]
[]
[null,"SERVICE"]
[null,"Rating",null,null,"Points",null,"Descriptor"]
[null,"Exceeds",null,null,85,null,"Active member of one or more committees; journal referee, etc.",null,null,null,null,null,null,null,null,null,null,null,null,null,null,null,null,null,null,null,null,null,null,null,null,null,null,null,null,null,null,null,null,null,false,{"$f":"IF(AO150,85,0)","v":0}]
[null,"Meets",null,null,70,null,"Service on departmental committee",null,null,null,null,null,null,null,null,null,null,null,null,null,null,null,null,null,null,null,null,null,null,null,null,null,null,null,null,null,null,null,null,null,false,{"$f":"IF(AO151,70,0)","v":0}]
[null,"Fails to Meet",null,null,50,null,"Assigned to departmental committee but no participation.",null,null,null,null,null,null,null,null,null,null,null,null,null,null,null,null,null,null,null,null,null,null,null,null,null,null,null,null,null,null,null,null,null,false,{"$f":"IF(AO152,50,0)","v":0}]
[null,"Unsatisfactory",null,null,20,null,"No service activities",null,null,null,null,null,null,null,null,null,null,null,null,null,null,null,null,null,null,null,null,null,null,null,null,null,null,null,null,null,null,null,null,null,false,{"$f":"IF(AO153,20,0)","v":0}]
[null,"Total Points",null,null,{"$f":"AP154","v":0},null,null,null,null,null,null,null,null,null,null,null,null,null,null,null,null,null,null,null,null,null,null,null,null,null,null,null,null,null,null,null,null,null,null,null,null,{"$f":"SUM(AP150:AP153)","v":0}]
[null,"Explanation for rating:"]
[]
[]
[]
[]
[]
[]
[]
[]
[null,"THIRD CONTRACT YEAR"]
[null,"During the third contract year the faculty member will enter her/his annual activity report in Digital Measures but will not fill out the ACOB Faculty Annual Appraisal rubric. The faculty review committee and the department chair will perform appraisals according to the following."]
[]
[]
[null,"TEACHING"]
[null,"Rating",null,null,"Points",null,"Descriptor"]
[null,"Exceeds",null,null,85,null,"Exceptional evaluations",null,null,null,null,null,null,null,null,null,null,null,null,null,null,null,null,null,null,null,null,null,null,null,null,null,null,null,null,null,null,null,null,null,false,{"$f":"IF(AO170,85,0)","v":0}]
[null,"Meets",null,null,70,null,"At least average evaluations",null,null,null,null,null,null,null,null,null,null,null,null,null,null,null,null,null,null,null,null,null,null,null,null,null,null,null,null,null,null,null,null,null,false,{"$f":"IF(AO171,70,0)","v":0}]
[null,"Fails to Meet",null,null,50,null,"Below average evaluations",null,null,null,null,null,null,null,null,null,null,null,null,null,null,null,null,null,null,null,null,null,null,null,null,null,null,null,null,null,null,null,null,null,false,{"$f":"IF(AO172,50,0)","v":0}]
[null,"Unsatisfactory",null,null,20,null,"Poor evaluations",null,null,null,null,null,null,null,null,null,null,null,null,null,null,null,null,null,null,null,null,null,null,null,null,null,null,null,null,null,null,null,null,null,false,{"$f":"IF(AO173,20,0)","v":0}]
[null,"Total Points",null,null,{"$f":"AP174","v":0},null,null,null,null,null,null,null,null,null,null,null,null,null,null,null,null,null,null,null,null,null,null,null,null,null,null,null,null,null,null,null,null,null,null,null,null,{"$f":"SUM(AP170:AP173)","v":0}]
[null,"Explanation for rating:"]
[]
[]
[]
[]
[]
[]
[]
[null,"RESEARCH"]
[null,"Rating",null,null,"Points",null,"Descriptor"]
[null,"Exceeds",null,null,85,null,"Paper(s) accepted in quality journal(s)",null,null,null,null,null,null,null,null,null,null,null,null,null,null,null,null,null,null,null,null,null,null,null,null,null,null,null,null,null,null,null,null,null,false,{"$f":"IF(AO185,85,0)","v":0}]
[null,"Meets",null,null,70,null,"Presentation(s) or submission(s) or acceptance",null,null,null,null,null,null,null,null,null,null,null,null,null,null,null,null,null,null,null,null,null,null,null,null,null,null,null,null,null,null,null,null,null,false,{"$f":"IF(AO186,70,0)","v":0}]
[null,"Fails to Meet",null,null,50,null,"Works in progress only",null,null,null,null,null,null,null,null,null,null,null,null,null,null,null,null,null,null,null,null,null,null,null,null,null,null,null,null,null,null,null,null,null,false,{"$f":"IF(AO187,50,0)","v":0}]
[null,"Unsatisfactory",null,null,20,null,"No works in progress",null,null,null,null,null,null,null,null,null,null,null,null,null,null,null,null,null,null,null,null,null,null,null,null,null,null,null,null,null,null,null,null,null,false,{"$f":"IF(AO188,20,0)","v":0}]
[null,"Total Points",null,null,{"$f":"AP189","v":0},null,null,null,null,null,null,null,null,null,null,null,null,null,null,null,null,null,null,null,null,null,null,null,null,null,null,null,null,null,null,null,null,null,null,null,null,{"$f":"SUM(AP185:AP188)","v":0}]
[null,"Explanation for rating:"]
[]
[]
[]
[]
[]
[]
[]
[null,"SERVICE"]
[null,"Rating",null,null,"Points",null,"Descriptor"]
[null,"Exceeds",null,null,85,null,"Active member of one or more committees; journal referee, etc.",null,null,null,null,null,null,null,null,null,null,null,null,null,null,null,null,null,null,null,null,null,null,null,null,null,null,null,null,null,null,null,null,null,false,{"$f":"IF(AO200,85,0)","v":0}]
[null,"Meets",null,null,70,null,"Service on departmental committee",null,null,null,null,null,null,null,null,null,null,null,null,null,null,null,null,null,null,null,null,null,null,null,null,null,null,null,null,null,null,null,null,null,false,{"$f":"IF(AO201,70,0)","v":0}]
[null,"Fails to Meet",null,null,50,null,"Assigned to departmental committee but no participation.",null,null,null,null,null,null,null,null,null,null,null,null,null,null,null,null,null,null,null,null,null,null,null,null,null,null,null,null,null,null,null,null,null,false,{"$f":"IF(AO202,50,0)","v":0}]
[null,"Unsatisfactory",null,null,20,null,"No service activities",null,null,null,null,null,null,null,null,null,null,null,null,null,null,null,null,null,null,null,null,null,null,null,null,null,null,null,null,null,null,null,null,null,false,{"$f":"IF(AO203,20,0)","v":0}]
[null,"Total Points",null,null,{"$f":"AP204","v":0},null,null,null,null,null,null,null,null,null,null,null,null,null,null,null,null,null,null,null,null,null,null,null,null,null,null,null,null,null,null,null,null,null,null,null,null,{"$f":"SUM(AP200:AP203)","v":0}]
[null,"Explanation for rating:"]
[]
[]
[]
[]
[]
[]
[]
[null,"FOURTH CONTRACT YEAR"]
[null,"During the fourth contract year the faculty member will enter her/his annual activity report in both Digital Measures and will fill out the ACOB 2-2 Faculty Annual Appraisal rubric. The faculty review committee and the department chair will perform appraisals."]

{"sheet":"Dictionary","index":1,"n_rows":13,"n_cols":7,"rows_kept":13,"cut":false,"hidden":true,"merged":[]}
["Rating","Points","Weights","Cumulative Grant Amount (Total $)","Department","Title","Descriptor"]
["Exceeds",85,"0%","Select List","ACC","Adjunct Professor","Exceptional evaluations"]
["Meets",60,0.1,"$ 0 up to 100,000","FIN","Assistant Professor","At least average evaluations"]
["Fails to Meet",30,0.2,"Over 100,000 up to 200,000","ECO","Assistant Professor of Practice","Below average evaluations"]
["Unsatisfactory",15,0.3,"Over 200,000 up to 500,000","ISCS","Associate Professor","Poor evaluations"]
[null,null,0.4,"Over 500,00 up to 750,000","MGT","Associate Professor of Practice"]
[null,null,0.45,"Over 750,000","MSS","Doctoral Student"]
[null,null,0.5,null,"MKT","Lecturer"]
[null,null,0.6,null,null,"Professor"]
[null,null,0.7,null,null,"Professor of Practice"]
[null,null,0.8,null,null,"Senior Lecturer"]
[null,null,0.9]
[null,null,1]